lending/lending_fUSD_20250102
["ID","MTS","AMOUNT","RATE_DAILY","PERIOD"]
[347479149,1735857558745,161.010307,0.0002,120]
[347479151,1735857593895,163.010307,0.0002,120]
[347479152,1735857594545,163.010307,0.0002,120]
[347479153,1735857594813,163.010307,0.0002,120]
[347479154,1735857595211,163.010307,0.0002,120]
[347479155,1735857595585,163.010307,0.0002,120]
[347479156,1735857595962,163.010307,0.0002,120]
[347479157,1735857596406,163.010307,0.0002,120]
[347479158,1735857596790,163.010307,0.0002,120]
[347479159,1735857597191,163.010307,0.0002,120]
[347479160,1735857598015,163.010307,0.0002,120]
[347479161,1735857598315,163.010307,0.0002,120]
[347479162,1735857598470,163.010307,0.0002,120]
[347479163,1735857599404,163.010307,0.0002,120]
[347479164,1735857599609,163.010307,0.0002,120]
[347479165,1735857599831,163.010307,0.0002,120]
[347479166,1735857600108,163.010307,0.0002,120]
[347479167,1735857600521,163.010307,0.0002,120]
[347479168,1735857601107,163.010307,0.0002,120]
[347479169,1735857601455,163.010307,0.0002,120]
[347479170,1735857601942,163.010307,0.0002,120]
[347479171,1735857603802,158.0,9.144e-05,30]
[347479172,1735857604098,158.0,0.00010981,30]
[347479173,1735857604422,158.0,0.00012817,30]
[347479174,1735857604725,158.0,0.00014654,30]
[347479175,1735857606639,167.010307,0.0002,120]
[347479176,1735857607251,167.010307,0.0002,120]
[347479177,1735857607502,167.010307,0.0002,120]
[347479178,1735857607936,167.010307,0.0002,120]
[347479179,1735857608489,167.010307,0.0002,120]
[347479180,1735857608751,167.010307,0.0002,120]
[347479181,1735857609161,167.010307,0.0002,120]
[347479182,1735857610307,167.010307,0.0002,120]
[347479183,1735857610494,167.010307,0.0002,120]
[347479184,1735857610726,167.010307,0.0002,120]
[347479185,1735857610963,167.010307,0.0002,120]
[347479186,1735857611348,167.010307,0.0002,120]
[347479187,1735857611692,167.010307,0.0002,120]
[347479188,1735857612119,167.010307,0.0002,120]
[347479189,1735857612535,167.010307,0.0002,120]
[347479190,1735857612948,167.010307,0.0002,120]
[347479191,1735857613360,167.010307,0.0002,120]
[347479192,1735857613821,167.010307,0.0002,120]
[347479193,1735857614775,167.010307,0.0002,120]
[347479194,1735857615121,167.010307,0.0002,120]
[347479195,1735857626341,173.010307,0.0002,120]
[347479196,1735857626984,173.010307,0.0002,120]
[347479197,1735857627381,173.010307,0.0002,120]
[347479198,1735857627806,173.010307,0.0002,120]
[347479199,1735857628584,173.010307,0.0002,120]
[347479200,1735857628881,173.010307,0.0002,120]
[347479201,1735857629478,173.010307,0.0002,120]
[347479202,1735857629898,173.010307,0.0002,120]
[347479203,1735857630359,173.010307,0.0002,120]
[347479204,1735857630691,173.010307,0.0002,120]
[347479205,1735857631940,173.010307,0.0002,120]
[347479206,1735857632365,173.010307,0.0002,120]
[347479207,1735857632631,173.010307,0.0002,120]
[347479208,1735857632946,173.010307,0.0002,120]
[347479209,1735857633300,173.010307,0.0002,120]
[347479210,1735857633843,173.010307,0.0002,120]
[347479211,1735857634555,173.010307,0.0002,120]
[347479215,1735857634754,173.010307,0.0002,120]
[347479217,1735857635050,173.010307,0.0002,120]
[347479218,1735857635351,173.010307,0.0002,120]
[347479219,1735857635627,173.010307,0.0002,120]
[347479220,1735857644552,179.010307,0.0002,120]
[347479221,1735857644982,179.010307,0.0002,120]
[347479222,1735857645359,179.010307,0.0002,120]
[347479223,1735857646055,179.010307,0.0002,120]
[347479224,1735857646252,179.010307,0.0002,120]
[347479225,1735857646583,179.010307,0.0002,120]
[347479226,1735857647015,179.010307,0.0002,120]
[347479227,1735857647458,179.010307,0.0002,120]
[347479228,1735857647843,179.010307,0.0002,120]
[347479229,1735857648294,179.010307,0.0002,120]
[347479230,1735857648662,179.010307,0.0002,120]
[347479231,1735857649094,179.010307,0.0002,120]
[347479232,1735857649508,179.010307,0.0002,120]
[347479233,1735857649945,179.010307,0.0002,120]
[347479234,1735857650364,179.010307,0.0002,120]
[347479235,1735857651048,179.010307,0.0002,120]
[347479236,1735857651337,179.010307,0.0002,120]
[347479237,1735857651679,179.010307,0.0002,120]
[347479238,1735857652127,179.010307,0.0002,120]
[347479239,1735857652562,179.010307,0.0002,120]
[347479240,1735857653603,179.010307,0.0002,120]
[347479241,1735857664470,181.010307,0.0002,120]
[347479242,1735857664699,181.010307,0.0002,120]
[347479243,1735857665165,181.010307,0.0002,120]
[347479244,1735857665514,181.010307,0.0002,120]
[347479245,1735857666063,181.010307,0.0002,120]
[347479246,1735857666305,181.010307,0.0002,120]
[347479247,1735857666587,181.010307,0.0002,120]
[347479248,1735857667000,181.010307,0.0002,120]
[347479249,1735857667503,181.010307,0.0002,120]
[347479250,1735857667690,181.010307,0.0002,120]
[347479251,1735857667877,181.010307,0.0002,120]
[347479252,1735857668208,181.010307,0.0002,120]
[347479253,1735857668646,181.010307,0.0002,120]
[347479254,1735857669109,181.010307,0.0002,120]
[347479255,1735857669551,181.010307,0.0002,120]
[347479256,1735857669999,181.010307,0.0002,120]
[347479257,1735857670457,181.010307,0.0002,120]
[347479258,1735857670942,181.010307,0.0002,120]
[347479259,1735857672410,181.010307,0.0002,120]
[347479260,1735857684239,191.010307,0.0002,120]
[347479261,1735857684745,191.010307,0.0002,120]
[347479262,1735857686098,191.010307,0.0002,120]
[347479263,1735857686423,191.010307,0.0002,120]
[347479264,1735857686692,191.010307,0.0002,120]
[347479265,1735857686918,191.010307,0.0002,120]
[347479266,1735857687150,191.010307,0.0002,120]
[347479267,1735857687350,191.010307,0.0002,120]
[347479268,1735857687608,191.010307,0.0002,120]
[347479269,1735857687983,191.010307,0.0002,120]
[347479270,1735857688396,191.010307,0.0002,120]
[347479271,1735857689065,191.010307,0.0002,120]
[347479272,1735857689393,191.010307,0.0002,120]
[347479273,1735857689662,191.010307,0.0002,120]
[347479274,1735857690057,191.010307,0.0002,120]
[347479275,1735857690455,191.010307,0.0002,120]
[347479276,1735857690885,191.010307,0.0002,120]
[347479277,1735857691311,191.010307,0.0002,120]
[347479278,1735857691862,191.010307,0.0002,120]
[347479279,1735857692135,191.010307,0.0002,120]
[347479280,1735857692582,191.010307,0.0002,120]
[347479281,1735857693051,191.010307,0.0002,120]
[347479282,1735857701657,193.010307,0.0002,120]
[347479283,1735857702031,193.010307,0.0002,120]
[347479284,1735857702424,193.010307,0.0002,120]
[347479285,1735857702744,193.010307,0.0002,120]
[347479286,1735857703152,193.010307,0.0002,120]
[347479287,1735857703557,193.010307,0.0002,120]
[347479288,1735857703952,193.010307,0.0002,120]
[347479289,1735857704397,193.010307,0.0002,120]
[347479290,1735857704776,193.010307,0.0002,120]
[347479291,1735857705181,193.010307,0.0002,120]
[347479292,1735857705855,193.010307,0.0002,120]
[347479293,1735857706155,193.010307,0.0002,120]
[347479294,1735857706433,193.010307,0.0002,120]
[347479295,1735857707277,193.010307,0.0002,120]
[347479296,1735857707477,193.010307,0.0002,120]
[347479297,1735857707678,193.010307,0.0002,120]
[347479298,1735857708120,193.010307,0.0002,120]
[347479299,1735857708876,193.010307,0.0002,120]
[347479300,1735857709209,193.010307,0.0002,120]
[347479301,1735857709453,193.010307,0.0002,120]
[347479302,1735857710002,193.010307,0.0002,120]
[347479303,1735857710298,193.010307,0.0002,120]
[347479304,1735857710668,193.010307,0.0002,120]
[347479305,1735857714324,23900.0,9.066e-05,2]
[347479306,1735857718979,197.010307,0.0002,120]
[347479307,1735857719873,197.010307,0.0002,120]
[347479308,1735857720239,197.010307,0.0002,120]
[347479309,1735857720653,197.010307,0.0002,120]
[347479310,1735857721075,197.010307,0.0002,120]
[347479311,1735857721591,197.010307,0.0002,120]
[347479312,1735857722141,197.010307,0.0002,120]
[347479313,1735857722447,197.010307,0.0002,120]
[347479314,1735857722720,197.010307,0.0002,120]
[347479315,1735857723181,197.010307,0.0002,120]
[347479316,1735857723567,197.010307,0.0002,120]
[347479317,1735857723983,197.010307,0.0002,120]
[347479318,1735857724447,197.010307,0.0002,120]
[347479319,1735857724836,197.010307,0.0002,120]
[347479320,1735857725232,197.010307,0.0002,120]
[347479321,1735857725648,197.010307,0.0002,120]
[347479322,1735857726085,197.010307,0.0002,120]
[347479323,1735857734011,199.010307,0.0002,120]
[347479324,1735857734720,199.010307,0.0002,120]
[347479325,1735857735135,199.010307,0.0002,120]
[347479326,1735857735567,199.010307,0.0002,120]
[347479327,1735857735983,199.010307,0.0002,120]
[347479328,1735857736408,199.010307,0.0002,120]
[347479329,1735857736811,199.010307,0.0002,120]
[347479330,1735857737252,199.010307,0.0002,120]
[347479331,1735857737950,199.010307,0.0002,120]
[347479332,1735857738195,199.010307,0.0002,120]
[347479333,1735857738633,199.010307,0.0002,120]
[347479334,1735857738917,199.010307,0.0002,120]
[347479335,1735857740016,199.010307,0.0002,120]
[347479336,1735857740230,199.010307,0.0002,120]
[347479337,1735857740465,199.010307,0.0002,120]
[347479338,1735857741040,199.010307,0.0002,120]
[347479339,1735857741539,199.010307,0.0002,120]
[347479340,1735857741819,199.010307,0.0002,120]
[347479341,1735857742219,199.010307,0.0002,120]
[347479342,1735857756516,211.010307,0.0002,120]
[347479343,1735857757259,211.010307,0.0002,120]
[347479344,1735857757716,211.010307,0.0002,120]
[347479345,1735857758084,211.010307,0.0002,120]
[347479346,1735857758683,211.010307,0.0002,120]
[347479347,1735857758852,211.010307,0.0002,120]
[347479348,1735857759257,211.010307,0.0002,120]
[347479349,1735857759646,211.010307,0.0002,120]
[347479350,1735857760068,211.010307,0.0002,120]
[347479351,1735857760515,211.010307,0.0002,120]
[347479352,1735857760890,211.010307,0.0002,120]
[347479353,1735857761687,211.010307,0.0002,120]
[347479354,1735857762229,211.010307,0.0002,120]
[347479355,1735857762383,211.010307,0.0002,120]
[347479356,1735857762534,211.010307,0.0002,120]
[347479357,1735857762953,211.010307,0.0002,120]
[347479358,1735857763412,211.010307,0.0002,120]
[347479359,1735857773211,223.010307,0.0002,120]
[347479360,1735857773811,223.010307,0.0002,120]
[347479361,1735857774115,223.010307,0.0002,120]
[347479362,1735857774504,223.010307,0.0002,120]
[347479363,1735857774923,223.010307,0.0002,120]
[347479364,1735857775278,223.010307,0.0002,120]
[347479365,1735857775692,223.010307,0.0002,120]
[347479366,1735857776293,223.010307,0.0002,120]
[347479367,1735857776567,223.010307,0.0002,120]
[347479368,1735857776898,223.010307,0.0002,120]
[347479369,1735857777299,223.010307,0.0002,120]
[347479370,1735857777679,223.010307,0.0002,120]
[347479371,1735857778079,223.010307,0.0002,120]
[347479372,1735857778490,223.010307,0.0002,120]
[347479373,1735857778918,223.010307,0.0002,120]
[347479374,1735857779390,223.010307,0.0002,120]
[347479375,1735857790816,227.010307,0.0002,120]
[347479376,1735857791370,227.010307,0.0002,120]
[347479377,1735857791963,227.010307,0.0002,120]
[347479378,1735857793848,227.010307,0.0002,120]
[347479379,1735857803151,229.010307,0.0002,120]
[347479380,1735857803620,229.010307,0.0002,120]
[347479381,1735857804800,229.010307,0.0002,120]
[347479382,1735857804930,229.010307,0.0002,120]
[347479383,1735857805186,229.010307,0.0002,120]
[347479384,1735857805512,229.010307,0.0002,120]
[347479385,1735857805664,229.010307,0.0002,120]
[347479386,1735857805975,229.010307,0.0002,120]
[347479387,1735857806406,229.010307,0.0002,120]
[347479388,1735857806865,229.010307,0.0002,120]
[347479389,1735857807426,229.010307,0.0002,120]
[347479390,1735857807927,229.010307,0.0002,120]
[347479391,1735857808144,229.010307,0.0002,120]
[347479392,1735857808395,229.010307,0.0002,120]
[347479393,1735857808921,229.010307,0.0002,120]
[347479394,1735857818609,233.010307,0.0002,120]
[347479395,1735857819000,233.010307,0.0002,120]
[347479396,1735857819403,233.010307,0.0002,120]
[347479397,1735857819774,233.010307,0.0002,120]
[347479398,1735857820182,233.010307,0.0002,120]
[347479399,1735857820558,233.010307,0.0002,120]
[347479400,1735857821007,233.010307,0.0002,120]
[347479401,1735857821687,233.010307,0.0002,120]
[347479402,1735857821941,233.010307,0.0002,120]
[347479403,1735857822155,233.010307,0.0002,120]
[347479404,1735857822577,233.010307,0.0002,120]
[347479405,1735857823144,233.010307,0.0002,120]
[347479406,1735857823379,233.010307,0.0002,120]
[347479407,1735857823797,233.010307,0.0002,120]
[347479408,1735857824222,233.010307,0.0002,120]
[347479409,1735857824633,233.010307,0.0002,120]
[347479410,1735857825026,233.010307,0.0002,120]
[347479411,1735857834759,239.010307,0.0002,120]
[347479412,1735857835576,239.010307,0.0002,120]
[347479413,1735857835823,239.010307,0.0002,120]
[347479414,1735857836798,239.010307,0.0002,120]
[347479415,1735857837007,239.010307,0.0002,120]
[347479416,1735857837176,239.010307,0.0002,120]
[347479417,1735857837365,239.010307,0.0002,120]
[347479418,1735857837661,239.010307,0.0002,120]
[347479419,1735857838335,239.010307,0.0002,120]
[347479420,1735857847898,241.010307,0.0002,120]
[347479421,1735857848099,241.010307,0.0002,120]
[347479422,1735857848230,241.010307,0.0002,120]
[347479423,1735857848487,241.010307,0.0002,120]
[347479424,1735857848909,241.010307,0.0002,120]
[347479425,1735857849245,241.010307,0.0002,120]
[347479426,1735857849615,241.010307,0.0002,120]
[347479427,1735857850048,241.010307,0.0002,120]
[347479428,1735857850438,241.010307,0.0002,120]
[347479429,1735857850928,241.010307,0.0002,120]
[347479430,1735857851484,241.010307,0.0002,120]
[347479431,1735857851750,241.010307,0.0002,120]
[347479432,1735857852092,241.010307,0.0002,120]
[347479433,1735857861121,251.010307,0.0002,120]
[347479434,1735857861998,251.010307,0.0002,120]
[347479435,1735857862513,251.010307,0.0002,120]
[347479436,1735857871468,257.010307,0.0002,120]
[347479437,1735857871931,257.010307,0.0002,120]
[347479438,1735857872332,257.010307,0.0002,120]
[347479439,1735857872756,257.010307,0.0002,120]
[347479440,1735857873132,257.010307,0.0002,120]
[347479441,1735857873581,257.010307,0.0002,120]
[347479442,1735857873986,257.010307,0.0002,120]
[347479443,1735857874395,257.010307,0.0002,120]
[347479444,1735857874960,257.010307,0.0002,120]
[347479445,1735857875214,257.010307,0.0002,120]
[347479446,1735857875633,257.010307,0.0002,120]
[347479447,1735857876075,257.010307,0.0002,120]
[347479448,1735857876488,257.010307,0.0002,120]
[347479449,1735857877061,257.010307,0.0002,120]
[347479450,1735857877437,257.010307,0.0002,120]
[347479451,1735857878356,257.010307,0.0002,120]
[347479452,1735857886729,250.0,9.088e-05,2]
[347479453,1735857888736,263.010307,0.0002,120]
[347479454,1735857889179,263.010307,0.0002,120]
[347479455,1735857889589,263.010307,0.0002,120]
[347479456,1735857890551,263.010307,0.0002,120]
[347479457,1735857890773,263.010307,0.0002,120]
[347479458,1735857891275,263.010307,0.0002,120]
[347479459,1735857891451,263.010307,0.0002,120]
[347479460,1735857891653,263.010307,0.0002,120]
[347479461,1735857891972,263.010307,0.0002,120]
[347479462,1735857892378,263.010307,0.0002,120]
[347479463,1735857892732,263.010307,0.0002,120]
[347479464,1735857902479,269.010307,0.0002,120]
[347479465,1735857903000,269.010307,0.0002,120]
[347479466,1735857903136,159.0,9.144e-05,30]
[347479467,1735857903403,269.010307,0.0002,120]
[347479468,1735857903457,159.0,0.00013429,30]
[347479469,1735857903778,269.010307,0.0002,120]
[347479470,1735857904602,269.010307,0.0002,120]
[347479471,1735857904766,269.010307,0.0002,120]
[347479472,1735857905025,269.010307,0.0002,120]
[347479473,1735857906766,163.73,9.088e-05,2]
[347479474,1735857910861,150.0,8.778e-05,2]
[347479475,1735857913072,150.0,8.778e-05,2]
[347479476,1735857913827,271.010307,0.0002,120]
[347479477,1735857917455,273.010307,0.0002,120]
[347479478,1735857917917,273.010307,0.0002,120]
[347479479,1735857925786,1627.1084,9.6e-05,2]
[347479480,1735857926859,277.010307,0.0002,120]
[347479481,1735857927263,277.010307,0.0002,120]
[347479482,1735857927666,277.010307,0.0002,120]
[347479483,1735857928089,277.010307,0.0002,120]
[347479484,1735857928485,277.010307,0.0002,120]
[347479485,1735857929436,277.010307,0.0002,120]
[347479486,1735857934322,281.010307,0.0002,120]
[347479487,1735857934651,281.010307,0.0002,120]
[347479488,1735857935002,281.010307,0.0002,120]
[347479489,1735857935759,281.010307,0.0002,120]
[347479490,1735857936176,281.010307,0.0002,120]
[347479491,1735857947102,283.010307,0.0002,120]
[347479492,1735857950982,289.010307,0.0002,120]
[347479493,1735857961442,293.010307,0.0002,120]
[347479494,1735857967641,307.010307,0.0002,120]
[347479495,1735857978616,311.010307,0.0002,120]
[347479496,1735857979226,311.010307,0.0002,120]
[347479497,1735857987049,313.010307,0.0002,120]
[347479498,1735857988003,313.010307,0.0002,120]
[347479499,1735857988642,313.010307,0.0002,120]
[347479500,1735857994881,431.46,9.3e-05,2]
[347479501,1735857997325,317.010307,0.0002,120]
[347479502,1735857998570,317.010307,0.0002,120]
[347479503,1735857998976,317.010307,0.0002,120]
[347479504,1735858000034,317.010307,0.0002,120]
[347479505,1735858000326,317.010307,0.0002,120]
[347479506,1735858005237,317.010307,0.0002,120]
[347479507,1735858009232,331.010307,0.0002,120]
[347479508,1735858010169,331.010307,0.0002,120]
[347479509,1735858010601,331.010307,0.0002,120]
[347479511,1735858018838,337.010307,0.0002,120]
[347479512,1735858027383,347.010307,0.0002,120]
[347479514,1735858031783,349.010307,0.0002,120]
[347479517,1735858044995,353.010307,0.0002,120]
[347479519,1735858048488,359.010307,0.0002,120]
[347479520,1735858053335,367.010307,0.0002,120]
[347479523,1735858065172,373.010307,0.0002,120]
[347479524,1735858068745,379.010307,0.0002,120]
[347479525,1735858073201,383.010307,0.0002,120]
[347479527,1735858087353,389.010307,0.0002,120]
[347479528,1735858092147,397.010307,0.0002,120]
[347479529,1735858103508,401.010307,0.0002,120]
[347479530,1735858107086,409.010307,0.0002,120]
[347479531,1735858110787,419.010307,0.0002,120]
[347479532,1735858121915,421.010307,0.0002,120]
[347479533,1735858125464,431.010307,0.0002,120]
[347479534,1735858129201,433.010307,0.0002,120]
[347479535,1735858140018,439.010307,0.0002,120]
[347479536,1735858141674,1351.99,8.219e-05,2]
[347479537,1735858144236,443.010307,0.0002,120]
[347479538,1735858148857,449.010307,0.0002,120]
[347479539,1735858159748,457.010307,0.0002,120]
[347479540,1735858163695,461.010307,0.0002,120]
[347479541,1735858167544,463.010307,0.0002,120]
[347479542,1735858178598,467.010307,0.0002,120]
[347479543,1735858182196,479.010307,0.0002,120]
[347479544,1735858186657,487.010307,0.0002,120]
[347479545,1735858195593,491.010307,0.0002,120]
[347479546,1735858199388,499.010307,0.0002,120]
[347479547,1735858210345,503.010307,0.0002,120]
[347479548,1735858214070,509.010307,0.0002,120]
[347479549,1735858219218,521.010307,0.0002,120]
[347479550,1735858229177,523.010307,0.0002,120]
[347479554,1735858231462,-405.715,9.67e-05,2]
[347479555,1735858231472,-1000.0,9.67e-05,2]
[347479556,1735858231482,-180.39579054,9.67e-05,2]
[347479557,1735858231494,-6181.77820946,9.67e-05,2]
[347479558,1735858231504,-3748.77168472,9.67e-05,2]
[347479559,1735858231556,-1251.22831528,9.67e-05,2]
[347479560,1735858231565,-1706.24452472,9.67e-05,2]
[347479561,1735858231668,-13001.12507528,9.67e-05,2]
[347479562,1735858231678,-2685.0,9.672e-05,2]
[347479563,1735858231687,-39545.23435469,9.7e-05,2]
[347479564,1735858231699,-7210.21218495,9.7e-05,2]
[347479565,1735858231750,-12168.30288529,9.7e-05,2]
[347479566,1735858231807,-2183.09359182,9.7e-05,2]
[347479567,1735858231819,-5488.61886519,9.7e-05,2]
[347479568,1735858231835,-497.65536239,9.7e-05,2]
[347479599,1735858235213,541.010307,0.0002,120]
[347479601,1735858237410,-337.83016865,9.7e-05,2]
[347479602,1735858237422,-4684.94698027,9.7e-05,2]
[347479603,1735858237434,-17183.079,9.7e-05,2]
[347479604,1735858237446,-3049.8516,9.7e-05,2]
[347479605,1735858237458,-17589.58217172,9.7e-05,2]
[347479606,1735858237469,-12037.45376007,9.7e-05,2]
[347479607,1735858237481,-53861.82356162,9.7e-05,2]
[347479608,1735858237505,-1072.9,9.7e-05,2]
[347479609,1735858237530,-1358.50341627,9.7e-05,2]
[347479610,1735858237591,-24644.69087665,9.7e-05,2]
[347479611,1735858237601,-150.0,9.726e-05,2]
[347479612,1735858237610,-153.10171739,9.743e-05,2]
[347479613,1735858237619,-500.0,9.743e-05,2]
[347479614,1735858237628,-507.42736761,9.743e-05,2]
[347479615,1735858237638,-153.80430466,9.743e-05,2]
[347479616,1735858237647,-500.0,9.769e-05,2]
[347479617,1735858237657,-500.0,9.769e-05,2]
[347479618,1735858237666,-500.0,9.769e-05,2]
[347479619,1735858237675,-357.15890295,9.769e-05,2]
[347479620,1735858237685,-500.0,9.769e-05,2]
[347479621,1735858237694,-333.25070736,9.769e-05,2]
[347479622,1735858237704,-500.0,9.769e-05,2]
[347479623,1735858237713,-500.0,9.769e-05,2]
[347479624,1735858237722,-581.07257008,9.769e-05,2]
[347479625,1735858237732,-500.0,9.769e-05,2]
[347479626,1735858237741,-194.39326888,9.769e-05,2]
[347479627,1735858237750,-683944.8505965,9.77e-05,2]
[347479628,1735858237762,-949685.91508238,9.77e-05,2]
[347479629,1735858237773,-4372.14807425,9.77e-05,2]
[347479630,1735858237784,-3715.78984,9.77e-05,2]
[347479637,1735858238967,547.010307,0.0002,120]
[347479638,1735858239480,-585.37581975,9.77e-05,2]
[347479639,1735858239491,-6024.76463846,9.77e-05,2]
[347479640,1735858239503,-475.8703,9.77e-05,2]
[347479641,1735858239552,-3593.47834983,9.77e-05,2]
[347479642,1735858239563,-1746.3324078,9.77e-05,2]
[347479643,1735858239575,-4980.16031994,9.77e-05,2]
[347479644,1735858239586,-11148.5019612,9.77e-05,2]
[347479645,1735858239598,-294.45892846,9.77e-05,2]
[347479646,1735858239609,-62180.81355393,9.77e-05,2]
[347479647,1735858239620,-1101.98242668,9.77e-05,2]
[347479648,1735858239632,-917.24959536,9.77e-05,2]
[347479649,1735858239656,-76642.27246518,9.77e-05,2]
[347479650,1735858239667,-542.59004501,9.77e-05,2]
[347479651,1735858239692,-1106.93200024,9.77e-05,2]
[347479652,1735858239704,-29522.83619325,9.77e-05,2]
[347479653,1735858239715,-310.5,9.77e-05,2]
[347479654,1735858239727,-2315.9462,9.77e-05,2]
[347479655,1735858239738,-456.875,9.77e-05,2]
[347479656,1735858239750,-3728.44,9.77e-05,2]
[347479670,1735858242528,-422.90000105,9.77e-05,2]
[347479671,1735858242539,-29810.42719147,9.77e-05,2]
[347479672,1735858242550,-71312.85242056,9.77e-05,2]
[347479673,1735858242588,-6332.2849218,9.77e-05,2]
[347479674,1735858242601,-7488.90594671,9.77e-05,2]
[347479675,1735858242633,-925.30401611,9.77e-05,2]
[347479676,1735858242645,-7017.51950224,9.77e-05,2]
[347479677,1735858242657,-495.23709628,9.77e-05,2]
[347479678,1735858242708,-254.70359965,9.77e-05,2]
[347479679,1735858242719,-320.61534327,9.77e-05,2]
[347479680,1735858242744,-1628.17427656,9.77e-05,2]
[347479681,1735858242757,-2506.71483423,9.77e-05,2]
[347479682,1735858242769,-455.90719532,9.77e-05,2]
[347479683,1735858242794,-764.55373,9.77e-05,2]
[347479684,1735858242805,-3463.16155831,9.77e-05,2]
[347479685,1735858242817,-2465.5210002,9.77e-05,2]
[347479686,1735858242829,-5862.20890592,9.77e-05,2]
[347479687,1735858242841,-18587.40094578,9.77e-05,2]
[347479688,1735858242854,-1403.42391454,9.77e-05,2]
[347479689,1735858242919,-2938.37923822,9.77e-05,2]
[347479705,1735858245540,-390.90444313,9.77e-05,2]
[347479707,1735858245552,-527.077714,9.77e-05,2]
[347479710,1735858245567,-878081.53073493,9.77e-05,2]
[347479715,1735858245602,-15274.98900001,9.77e-05,2]
[347479727,1735858245717,-986.52863358,9.77e-05,2]
[347479729,1735858245729,-10634.5999995,9.77e-05,2]
[347479730,1735858245740,-2231.71493488,9.77e-05,2]
[347479731,1735858245751,-50650.0,9.77e-05,2]
[347479732,1735858245763,-9472.6017641,9.77e-05,2]
[347479733,1735858245840,-38049.07955746,9.77e-05,2]
[347479737,1735858249318,596.831,9.6e-05,2]
[347479738,1735858255235,557.010307,0.0002,120]
[347479739,1735858261339,563.010307,0.0002,120]
[347479740,1735858267112,569.010307,0.0002,120]
[347479741,1735858290589,571.010307,0.0002,120]
[347479742,1735858290655,500.0,0.0002,120]
[347479743,1735858292285,1000.0,9.6e-05,2]
[347479744,1735858295738,577.010307,0.0002,120]
[347479745,1735858311476,1266.22,0.0002,120]
[347479746,1735858316358,587.010307,0.0002,120]
[347479747,1735858332203,56856.1038,9.6e-05,2]
[347479748,1735858361060,222.010307,0.0002,120]
[347479749,1735858390730,250.0,9.293e-05,2]
[347479750,1735858418561,3011.03965982,9e-05,2]
[347479752,1735858493286,1000.0,9.292e-05,2]